Cogmind - Beta 13 @@@ ROGUE MODE // 2024.04.17 @ 20:36:41 Player: Gold Spoon Result: Destroyed by OB-8C8(R) with Subdweller Beam Cannon Performance ------------- Evolutions (0) 0 Regions Visited (3) 600 Robots Destroyed (37) 185 Value Destroyed (869) 869 Prototype IDs (14) 280 Alien Tech Used (0) 0 Bonus (0) 0 TOTAL SCORE: 1934 Bonus ------- None Cogmind --------- Core Integrity 0/250 Matter 105/300 Energy 96/100 System Corruption 3% Temperature Cool (9) Movement Treading (160) Location -10/Subcaves Parts ------- > --- POWER (1) -------- (None) > --- PROPULSION (2) --- Improved Treads Improved Treads > --- UTILITY (2) ------ High-capacity Storage Unit Targeting Computer > --- WEAPON (2) ------- Light Cannon Light Cannon (fused) > --- INVENTORY (20) --- Targeting Computer ECM Suite Gun Armor Rocket Launcher Subdweller Shrapnel Launcher Improved Grenade Launcher Peak State ------------ > --- POWER ------------ Light Deuterium Engine > --- PROPULSION ------- Improved Treads Improved Treads > --- UTILITY ---------- High-capacity Storage Unit Targeting Computer > --- WEAPON ----------- Light Cannon Rocket Launcher > --- INVENTORY -------- Targeting Computer ECM Suite Gun Armor Light Cannon Light Cannon Light Cannon Improved Grenade Launcher [Rating: 13] Favorites ----------- Power Light Deuterium Engine Engine Light Deuterium Engine Propulsion Improved Treads Treads Improved Treads Utility Targeting Computer Device Heat Sink Storage High-capacity Storage Unit Processor Targeting Computer Weapon Light Cannon Energy Gun Medium Laser Ballistic Gun Assault Rifle Ballistic Cannon Light Cannon Launcher Rocket Launcher Build | -11 -10 -10 -10 ------- Run | Yrd Mat Min Sub Slots Evolved . | . . . . Power . | . . . . Propulsion . | . . . . Utility . | . . . . Weapon . | . . . . Parts Attached 27 | 6 11 4 6 Power 2 | 1 . 1 . Engine 2 | 1 . 1 . Core . | . . . . Reactor . | . . . . Propulsion 6 | 2 2 . 2 Treads 6 | 2 2 . 2 Leg . | . . . . Wheel . | . . . . Hover . | . . . . Flight . | . . . . Utility 9 | 1 5 3 . Device 1 | . 1 . . Storage 7 | 1 3 3 . Processor 1 | . 1 . . Hackware . | . . . . Protection . | . . . . Artifact . | . . . . Weapon 10 | 2 4 . 4 Energy Gun 2 | 2 . . . Energy Cannon . | . . . . Ballistic Gun 2 | . 2 . . Ballistic Cannon 5 | . 2 . 3 Launcher 1 | . . . 1 Special Weapon . | . . . . Impact Weapon . | . . . . Slashing Weapon . | . . . . Piercing Weapon . | . . . . Special Melee Weapon . | . . . . Unidentified Prototypes . | . . . . Parts Lost 6 | . . 1 5 Power 2 | . . 1 1 Propulsion 2 | . . . 2 Utility . | . . . . Weapon 2 | . . . 2 Highest Loss Streak 3 | . . 1 3 To Critical Strikes 2 | . . 1 1 Average Slot Usage (%) 96 | . 99 95 96 Engine 11 | . 14 9 10 Treads 27 | . 28 28 27 Storage 13 | . 12 14 14 Processor 13 | . 13 14 14 Energy Gun 4 | . 16 . . Ballistic Gun 1 | . 7 . . Ballistic Cannon 21 | . 3 28 27 Naked Turns . | . . . . Heaviest Build 52 | 14 16 51 52 Greatest Support 46 | 40 46 46 46 Greatest Overweight (x) 1 | . . 1 1 Average Overweight (x) . | . . . . Largest Inventory Capacity 20 | 8 20 20 20 Average Capacity 15 | 7 7 14 20 Most Carried 8 | 5 8 8 8 Average Carried 6 | . 4 7 6 Final Capacity 20 | 8 8 20 20 Final Carried 8 | . 8 8 6 Class Distribution -------------------- 100% | Mutant Dominant Class ---------------- Mutant | -10/Materials Mutant | -10/Mines Mutant | -10/Subcaves Resources | -11 -10 -10 -10 ----------- Run | Yrd Mat Min Sub Matter Collected 1209 | 191 213 226 579 Remotely . | . . . . Salvage Created 952 | . 559 147 246 Parts 73 | . 30 25 18 Haulers Intercepted . | . . . . Recyclers Shooed 1 | . 1 . . Parts Field Recycled . | . . . . Retrieved Matter . | . . . . Parts Self-Destructed 23 | . . . 23 Prevented . | . . . . Kills | -11 -10 -10 -10 ------- Run | Yrd Mat Min Sub Combat Hostiles Destroyed 30 | . 11 10 9 Guns 11 | . 11 . . Cannons 19 | . . 10 9 Classes Destroyed 8 | . 3 3 2 Worker 2 | . . 2 . Tunneler 1 | . . 1 . Turret 2 | . . . 2 Watcher 2 | . 2 . . Swarmer 14 | . 3 8 3 Grunt 8 | . 8 . . Sentry 2 | . . 2 . Subdweller 6 | . . . 6 Best Kill Streak 4 | . 4 3 4 Combat Bots Only 4 | . 4 3 4 Max Kills in Single Turn 2 | . 2 1 1 Gunslinging 1 | . 1 . . Exploded . | . . . . Melee . | . . . . Uniques/NPCs Destroyed . | . . . . Combat | -11 -10 -10 -10 -------- Run | Yrd Mat Min Sub Hostile Shots Fired 205 | . 48 49 108 Missed 70 | . 17 10 43 Damage Taken 1492 | . 394 394 704 Core 255 | . 51 67 137 Absorbed by Shields . | . . . . Core Remaining (%) 100 | 100 . . . Volleys Fired 141 | . 43 22 76 Largest 2 | . 2 2 2 Hottest 100 | . 100 70 70 Shots Fired 281 | . 86 48 147 Gun 86 | . 86 . . Cannon 192 | . . 48 144 Launcher 3 | . . . 3 Special . | . . . . Kinetic 207 | . 15 48 144 Thermal 71 | . 71 . . Explosive 3 | . . . 3 Electromagnetic . | . . . . Robot Hit Streak 11 | . 6 9 11 Robot Miss Streak 4 | . 4 2 2 Penetration Max . | . . . . Secondary Targets 3 | . 3 . . Max Gunslinging Chain 1 | . 1 . . Shots Hit Robots 104 | . 49 25 30 Core Hits 58 | . 26 14 18 Critical Kills . | . . . . Critical Parts Destroyed . | . . . . Critical Strikes 11 | . 8 3 . Burn 8 | . 8 . . Blast 3 | . . 3 . Melee Attacks . | . . . . Impact . | . . . . Slashing . | . . . . Piercing . | . . . . Sneak Attacks . | . . . . Combat Hostiles . | . . . . Follow-up Attacks . | . . . . Damage Inflicted 1644 | . 663 460 521 Guns 661 | . 661 . . Cannons 953 | . . 432 521 Explosions . | . . . . Melee . | . . . . Ramming 30 | . 2 28 . Kinetic 1077 | . 124 432 521 Thermal 537 | . 537 . . Explosive . | . . . . Electromagnetic . | . . . . Impact . | . . . . Slashing . | . . . . Piercing . | . . . . Highest Corruption 3 | . 3 3 3 Average Corruption 2 | . 2 3 3 Corruption Purged . | . . . . Corruption Blocked . | . . . . Effects 84 | . 13 27 44 Message Errors 16 | . 4 3 9 Matter Fused 18 | . 2 7 9 Heat Flow Errors 16 | . 1 3 12 Energy Discharges 8 | . 1 3 4 Parts Fused 1 | . . . 1 Data Loss (minor) 13 | . 4 5 4 Data Loss (major) 4 | . . 1 3 Misfires 5 | . . 4 1 Alerts 2 | . 1 1 . Weapon Failures 1 | . . . 1 Overload Shots . | . . . . Overflow Damage . | . . . . Projectiles . | . . . . Explosions . | . . . . Melee . | . . . . Knockbacks 2 | . . . 2 Impact . | . . . . Kinetic 2 | . . . 2 Secondary . | . . . . Self-Inflicted Damage 37 | . . . 37 Shots 2 | . . . 2 Rammed 6 | . 1 5 . Targets Rammed 8 | . 1 7 . Kicked . | . . . . Crushed 2 | . . 2 . Highest Temperature 422 | . 422 279 266 Average Temperature 112 | . 129 80 102 Received Heat Transfer 468 | . 183 45 240 Effects 5 | . 4 . 1 Shutdowns 1 | . 1 . . Energy Bleed 1 | . . . 1 Damage (major) 3 | . 3 . . Siege Activations . | . . . . Robots Corrupted . | . . . . Combat Hostiles . | . . . . Parts Fried . | . . . . Impact Corruptions . | . . . . Robots Melted . | . . . . Combat Hostiles . | . . . . Parts Melted 7 | . 5 . 2 Heat Transferred 2183 | . 2183 . . Parts Sabotaged . | . . . . Parts Stolen . | . . . . Parts Stripped . | . . . . Power Chain Reactions . | . . . . Alert | -11 -10 -10 -10 ------- Run | Yrd Mat Min Sub Peak Influence 276 | . 276 260 . Initial . | . . . . Average 55 | . 48 66 . Maximum Alert Level 1 | . 1 1 . Low Security (%) 93 | 100 97 90 . Level 1 6 | . 2 9 . Level 2 . | . . . . Level 3 . | . . . . Level 4 . | . . . . Level 5 . | . . . . High Security . | . . . . Max Security . | . . . . Squads Dispatched 2 | . 2 . . Investigation . | . . . . Extermination . | . . . . Reinforcement 2 | . 2 . . Assault . | . . . . Garrison . | . . . . Intercept . | . . . . Searches Triggered . | . . . . Construction Impeded . | . . . . Haulers Reinforced . | . . . . Active Scanning Responses . | . . . . Cargo Convoy Interrupts . | . . . . Stealth | -11 -10 -10 -10 --------- Run | Yrd Mat Min Sub Distress Signals 1 | . 1 . . Communications Jammed . | . . . . Distress Signals . | . . . . Times Spotted 80 | . 21 13 46 Peak Tracking Total 6 | . 6 5 6 Tactical Retreats 7 | . . 3 4 Traps | -11 -10 -10 -10 ------- Run | Yrd Mat Min Sub Traps Triggered 4 | . 4 . . Indirectly . | . . . . Trap Hack Attempts . | . . . . Triggered . | . . . . Disarmed . | . . . . Reprogrammed . | . . . . Reused . | . . . . Traps Extracted . | . . . . Installed . | . . . . Triggered . | . . . . Machines | -11 -10 -10 -10 ---------- Run | Yrd Mat Min Sub Machines Disabled 2 | . . . 2 Max in Single Turn 1 | . . . 1 Machines Repaired . | . . . . Machines Dismantled . | . . . . Machines Sabotaged . | . . . . Overloaded Fab Kills . | . . . . Hacking | -11 -10 -10 -10 --------- Run | Yrd Mat Min Sub Machines Accessed 8 | . 6 1 1 Terminals 6 | . 6 . . Fabricators . | . . . . Repair Stations . | . . . . Recycling Units . | . . . . Scanalyzers . | . . . . Garrison Access . | . . . . Total Hacks 23 | . 13 1 9 Successful 17 | . 7 1 9 Failed 6 | . 6 . . Catastrophic . | . . . . Database Lockouts . | . . . . Manual . | . . . . Terminals 13 | . 13 . . Fabricators . | . . . . Repair Stations . | . . . . Recycling Units . | . . . . Scanalyzers . | . . . . Garrison Access . | . . . . Terminal Hacks 17 | . 7 1 9 Record 8 | . . . 8 Prototype ID Bank 2 | . 2 . . Open Door 1 | . . 1 . Branch Access Points 1 | . 1 . . Alert Level 1 | . 1 . . Locate Traps 1 | . 1 . . Security Status 1 | . 1 . . Zone Layout 1 | . 1 . . Derelict Proto ID Bank 1 | . . . 1 Fabricator Hacks . | . . . . Repair Station Hacks . | . . . . Recycling Unit Hacks . | . . . . Scanalyzer . | . . . . Garrison Access Hacks . | . . . . Unauthorized Hacks . | . . . . Terminals . | . . . . Fabricators . | . . . . Repair Stations . | . . . . Recycling Units . | . . . . Scanalyzers . | . . . . Garrison Access . | . . . . Data Cores Recovered . | . . . . Used . | . . . . Hacking Detections 4 | . 4 . . Full Trace Events . | . . . . Feedback Events . | . . . . Feedback Blocked . | . . . . Robot Schematics Acquired . | . . . . Robots Built . | . . . . Authchips . | . . . . Time . | . . . . Total Robot Build Rating . | . . . . Part Schematics Acquired . | . . . . Parts Built . | . . . . Authchips . | . . . . Time . | . . . . Total Part Build Rating . | . . . . Parts Repaired . | . . . . Time . | . . . . Parts Recycled . | . . . . Recycled Matter . | . . . . Retrieved Matter . | . . . . Retrieved Components . | . . . . Parts Scanalyzed . | . . . . Part Schematics Acquired . | . . . . Parts Damaged . | . . . . Bothacking | -11 -10 -10 -10 ------------ Run | Yrd Mat Min Sub Used RIF Installer . | . . . . Robots Hacked . | . . . . Non-combat . | . . . . Combat . | . . . . Robot Hacks Applied . | . . . . Relay Couplers Released . | . . . . Fabnet Peak Effective % . | . . . . Robots Rewired . | . . . . Allies Hacked . | . . . . Hacks Repelled . | . . . . Allies | -11 -10 -10 -10 -------- Run | Yrd Mat Min Sub Total Allies . | . . . . Largest Group . | . . . . Highest-Rated Group . | . . . . Highest-Rated Ally . | . . . . Total Orders . | . . . . Ally Attacks . | . . . . Total Damage . | . . . . Kills . | . . . . Allies Corrupted . | . . . . Allies Melted . | . . . . Intel | -11 -10 -10 -10 ------- Run | Yrd Mat Min Sub Robot Analysis Total . | . . . . Derelict Logs Recovered 2 | . . 2 . Drone Launches . | . . . . Drone Recoveries . | . . . . Exploration | -11 -10 -10 -10 ------------- Run | Yrd Mat Min Sub Turns Passed 5777 | 65 1441 1445 2826 Spaces Moved 2720 | 43 797 690 1190 Core 14 | 14 . . . Treads 2706 | 29 797 690 1190 Legs . | . . . . Wheels . | . . . . Hover . | . . . . Flight . | . . . . Fastest Speed 50 | 50 160 160 160 Average Speed 192 | 124 160 195 215 Slowest Speed 240 | 160 160 240 240 Overloaded Moves . | . . . . Propulsion Burnouts . | . . . . Robots Hopped . | . . . . Cave-ins Triggered . | . . . . Exploration Rate (%) 62 | 4 99 99 47 Regions Visited 3 Branch Regions 2 Pre-discovered Areas 2 | . . 2 . Known Exits Taken 1 | . 1 . . Unknown Exits Taken 2 | 1 . 1 . Scrap Searched 2 | . . 1 1 Spaces Dug . | . . . . Terrain Destroyed 25 | . . . 25 Melee . | . . . . Projectile . | . . . . AOE 25 | . . . 25 Terrain Rammed . | . . . . Walls Destroyed . | . . . . Machines Disabled . | . . . . Actions | -11 -10 -10 -10 --------- Run | Yrd Mat Min Sub Total 2979 | 55 875 738 1311 Wait 51 | 1 2 11 37 Move 2717 | 42 796 689 1190 Hop . | . . . . Pick Up 27 | 6 16 3 2 Fast Attach . | . . . . Attach 13 | 6 2 1 4 Detach . | . . . . Swap 14 | . 9 3 2 Drop 8 | . 6 2 . Fire 141 | . 43 22 76 Melee . | . . . . Ram . | . . . . Kick . | . . . . Crush 8 | . 1 7 . Escape Stasis . | . . . . Rewire . | . . . . Trap . | . . . . Miscellaneous . | . . . . Route ------- -11/Scrapyard -10/Materials (discovered 4 exits: [*Mat x3] / *Min) -10/Mines (discovered 3 exits: [*Mat x2] / *Sub) -10/Subcaves (discovered 1 exit: [*Rec]) History --------- Turn | Location | Event 41 | -11/Scrapyard | Discovered new exit (range 12) 66 | -11/Scrapyard | Entered Materials 215 | -10/Materials | Identified exit to Mines 292 | -10/Materials | Discovered new exit (range 15) 304 | -10/Materials | Build established: Mutant 376 | -10/Materials | Discovered new exit (range 13) 1165 | -10/Materials | Discovered new exit (range 16) 1507 | -10/Materials | Entered Mines 1595 | -10/Mines | Received a Rocket Launcher from a helpful Derelict 1595 | -10/Mines | Discovered new exit (range 5) 1857 | -10/Mines | Learned location of Storage (-7) 2016 | -10/Mines | Discovered new exit (range 5) 2167 | -10/Mines | Learned location of Zion (-7) 2182 | -10/Mines | Met a Derelict who couldn't figure out how to use a Trap Extractor 2679 | -10/Mines | Learned Materials trap positions 2928 | -10/Mines | Discovered new exit (range 10) 2952 | -10/Mines | Entered Subcaves 3000 | -10/Subcaves | Shifting Twisted Machinery released Sub. Power Source 3003 | -10/Subcaves | Shifting Twisted Machinery released Battle Rifle 3036 | -10/Subcaves | Core integrity fell below 50% 3090 | -10/Subcaves | Ambushed by swarm of Subdwellers 3137 | -10/Subcaves | Shifting Twisted Machinery released Ripper 3184 | -10/Subcaves | Shifting Twisted Machinery released Riot Gun 3733 | -10/Subcaves | Core integrity fell below 20% 3777 | -10/Subcaves | A swath of the cavern ceiling suddenly collapsed 4046 | -10/Subcaves | Visited 4L-MR0's lab 4148 | -10/Subcaves | Found Gun Armor 5137 | -10/Subcaves | Discovered new exit (range 16) 5176 | -10/Subcaves | Lost 3 parts (1p2w) 5778 | -10/Subcaves | Destroyed by OB-8C8(R) with Subdweller Beam Cannon Last Messages --------------- Acquired 10 matter. Acquired 2 matter. Acquired 6 matter. Acquired 15 matter. Acquired 9 matter. Acquired 4 matter. Acquired 1 matter. Acquired 8 matter. Acquired 4 matter. Acquired 2 matter. 5BDFU7=A NRPTFUDFVSPQQID System corrupted: Substantial component data lost. Acquired Sub. Shrapnel Launcher. System corrupted: Substantial component data lost. RP-7J1(R) destroyed. Acquired 31 matter. Acquired 6 matter. System corrupted: Lgt. Cannon fused. Map ----- +----------------------------------------------------+ | ?????????????????????????????????????????????????? | | ?????????????????????????????????????????????????? | | ?????????????????????????????????????????????????? | | ?????????????????????????????????????????????????? | | ?????????????????????????????????????????????????? | | ?????????????????????????????????????????????????? | | ?????????????????????????????????????????????????? | | ?????????????????????????????????????????????????? | | ?????????????????????????????????????????????????? | | ?????????????????????????????????????????????????? | | ?????????????????????????????????????????????????? | | ?????????????????????????????????????????????????? | | ?????????????????????????????????????????????????? | | ?????????????????????????????????????????????????? | | ?????????????????????????????????????????????????? | | ?????????????????????????????????????????????????? | | ???????????? ??????????????????? ??????????????? | | ????????????? ??????????????????" ?????????????? | | ????????????? ???????????????? "" ?????????????? | | ?????????????? ?????????????? "" ?????????????? | | ?????????????? ????????????"" "" ##???????????? | | ??????????????# ???????????#" "" ##??????????? | | ?????????????## ?????######" #??????????? | | ?????????????# ????#; #??????????? | | ?????????????# ??#### ????????? | | ?????????????# ### # @ ????????? | | ?????????????## ????????? | | ???###???????# ### ### ????????? | | ???# ######??##### #??# ###???????????????? | | ???# ##?????# ######## %#?????????????????? | | ?### #####?# # # #?#R"#?????????????????? | | ## #### #?"""##????????????????? | | # ## "###"""#????????????????? | | ## ## "## "#????????????????? | | ] " ## ## #????????????????? | | ## ## ## &="##"" ##" "##???????????????? | | ###### ## ## ##### ##" ""####????????????? | | #????###### ### ##?##" """"""""" ???????????? | | ??????????# ## #??#["" """ """" ???????????? | | ??????????# # ##??# " " #### ?????????? | | ??????????### #???# "" #??????????????????? | | ##??????????# #???## "" #??????????????????? | | ##########?# #????#####" #??????????????????? | | ##" """#?## ##????????#####??????????????????? | | ### "#??####????????????????????????????????? | | #### "#??????????????????????????????????????? | | ##?????????????????????????????????????? | | <#?????????????????????????????????????? | | ""##?????????????????????????????????????? | | #### "#??????????????????????????????????????? | +----------------------------------------------------+ Best States ------------- Heat Dissipation 35 Energy Generation 14 Energy Capacity 250 Matter Stores 300 Matter Capacity 300 Sight Range 16 Terrain Scan Density 10 Evasion (%) 50 Targeting Accuracy 5 Recoil Reduction 2 Item Schematics ----------------- None Robot Schematics ------------------ None Fabricated ------------ Nothing Alien Tech Used ----------------- None Achievements -------------- None Challenges ------------ None Game ------ Seed ForceDeuteriumCore Manual? 0 Play Time 00:34:43 Cumulative 7.4 hours Start 2024.04.17 @ 17:58:37 End 2024.04.17 @ 20:36:41 Sessions 1 Manual Loads 0 Difficulty Rogue Special Mode None Game No. 11 Rogue 9 Adventurer 2 Explorer 0 Win Type - Total 0 Types 0/0/0/0/0/0/0/0/0 Lore% 17 Gallery% 11 Achievement% 13 Wizard Run 0 Options --------- Layout 1 ASCII 0 Keyboard 0 Movement Mouse Keybinds 0 Fullscreen 1 Font 24/Smallcaps Map View 50x40 Zoom Use 0% Tactical HUD 0 Map Filters NONE Filters NONE Steam 1 RUN: 0d9fb58c-85fd-4df1-bf33-c005656f205b